{"text_format":"1","workbook":"xlsx","n_sheets":1,"sheets":["Plan Estr. Sectorial MVCT 2017"],"not_rendered":{"charts":0,"images":0,"macros":1,"external_links":0,"defined_names":3,"comments":0,"pivot_tables":0},"unopened":[],"bounds":{"document_bytes":16777216,"sheet_cells":100000,"rows_first":2000,"rows_last":500,"rows_between":2000,"halvings":0,"cell_chars":16384,"cell_head_chars":4096},"cells_cut":0,"cells_raw":0,"read":"whole","date_system":"1900"}

{"sheet":"Plan Estr. Sectorial MVCT 2017","index":0,"n_rows":125,"n_cols":14,"rows_kept":125,"cut":false,"hidden":false,"merged":[[2,0,6,0],[2,1,6,1],[2,2,6,2],[2,3,6,3],[2,4,6,4],[2,5,6,5],[0,10,0,13],[0,6,1,6],[0,7,1,7],[0,8,1,8],[0,9,1,9],[0,0,1,0],[0,1,1,1],[0,2,1,2],[0,3,1,3],[0,4,1,4],[0,5,1,5],[30,0,37,0],[30,1,37,1],[30,2,37,2],[30,3,37,3],[30,4,33,4],[30,5,33,5],[30,6,31,6],[30,8,31,8],[8,0,29,0],[8,1,29,1],[8,2,29,2],[8,3,29,3],[8,4,16,4],[8,5,27,5],[17,4,27,4],[28,4,29,4],[34,4,37,4],[34,5,37,5],[53,13,54,13],[53,10,54,10],[53,11,54,11],[53,12,54,12],[53,6,54,6],[53,7,54,7],[53,8,54,8],[53,9,54,9],[32,12,33,12],[32,13,33,13],[32,9,33,9],[32,10,33,10],[32,11,33,11],[32,6,33,6],[32,7,33,7],[32,8,33,8],[70,0,72,0],[70,1,72,1],[70,2,72,2],[70,3,72,3],[70,4,72,4],[70,5,71,5],[55,4,66,4],[55,5,66,5],[67,4,69,4],[38,0,69,0],[38,1,69,1],[38,2,69,2],[38,3,69,3],[38,4,54,4],[38,5,46,5],[47,5,54,5],[73,10,73,13],[74,0,75,0],[74,1,75,1],[74,2,75,2],[74,3,75,3],[74,4,75,4],[74,5,75,5],[80,13,81,13],[80,10,81,10],[80,11,81,11],[80,12,81,12],[80,6,81,6],[80,7,81,7],[80,8,81,8],[80,9,81,9],[90,0,92,0],[90,1,92,1],[90,2,92,2],[90,3,92,3],[90,4,92,4],[90,5,92,5],[76,0,89,0],[76,1,89,1],[76,2,89,2],[76,3,89,3],[76,4,87,4],[76,5,87,5],[93,13,95,13],[93,10,95,10],[93,11,95,11],[93,12,95,12],[93,6,95,6],[93,7,95,7],[93,8,95,8],[93,9,95,9],[93,0,112,0],[93,1,112,1],[93,2,112,2],[93,3,112,3],[93,4,109,4],[93,5,95,5],[110,4,111,4],[110,5,111,5],[98,10,100,10],[98,11,100,11],[98,12,100,12],[98,13,100,13],[96,5,108,5],[98,6,100,6],[98,7,100,7],[98,8,100,8],[98,9,100,9],[101,10,104,10],[101,11,104,11],[101,12,104,12],[101,13,104,13],[101,6,104,6],[101,7,104,7],[101,8,104,8],[101,9,104,9],[122,4,123,4],[113,0,123,0],[113,1,123,1],[113,2,123,2],[113,3,123,3],[113,4,118,4],[113,5,118,5],[119,4,121,4],[119,5,121,5]]}
["Perspectiva BSC","Foco Estratégico","Política Dllo. Admtivo asociada","Objetivo del Sector","Entidad","Objetivos Estratégicos Entidad","Indicador","Código","Fórmula","Meta a 2018","Metas Anuales"]
[null,null,null,null,null,null,null,null,null,null,2015,2016,2017,2018]
["Gestión Misional","Calidad de vida","Gestión Misional y de Gobierno","Mejorar la calidad de vida de los habitantes de Colombia en cuanto a vivienda y a los servicios de agua potable y saneamiento básico, mediante la construcción de Ciudades amables y sostenibles y la implementación de programas, que busquen sostenibilidad del recurso hídrico, disminuir la brecha de pobreza, incrementar la calidad de las viviendas y de los servicios de APSB y generar desarrollo económico para Colombia.","SECTOR","Todos los objetivos apuntan a este foco\nEs un foco estratégico agrupador","Indice de pobreza multidimensional Nacional: Sin acceso a fuente de agua mejorada","CVI-01","Porcentaje de personas en situación de pobreza multidimensional: Sin acceso a fuente de agua mejorada",{"$f":"N3","v":9.5089302000000001E-2},9.8000000000000004E-2,{"$f":"K3+(K3*-1%)","v":9.7020000000000009E-2},{"$f":"L3+(L3*-1%)","v":9.6049800000000005E-2},{"$f":"M3+(M3*-1%)","v":9.5089302000000001E-2}]
[null,null,null,null,null,null,"Indice de pobreza multidimensional Nacional: Inadecuada eliminación de excretas","CVI-02","Porcentaje de personas en situación de pobreza multidimensional: Inadecuada eliminación de excretas",{"$f":"N4","v":9.800019900000001E-2},0.10100000000000001,{"$f":"K4+(K4*-1%)","v":9.9990000000000009E-2},9.8990100000000011E-2,9.800019900000001E-2]
[null,null,null,null,null,null,"Indice de pobreza multidimensional Nacional: Pisos inadecuados","CVI-03","Porcentaje de personas en situación de pobreza multidimensional: Pisos inadecuados",4.4633753999999998E-2,4.5999999999999999E-2,4.5539999999999997E-2,4.5084599999999996E-2,4.4633753999999998E-2]
[null,null,null,null,null,null,"Indice de pobreza multidimensional Nacional: Paredes exteriores inadecuadas","CVI-04","Porcentaje de personas en situación de pobreza multidimensional: Paredes exteriores inadecuadas",1.6495083000000001E-2,1.7000000000000001E-2,1.6830000000000001E-2,1.6661700000000002E-2,1.6495083000000001E-2]
[null,null,null,null,null,null,"Indice de pobreza multidimensional Nacional: Hacinamiento crítico","CVI-05","Porcentaje de personas en situación de pobreza multidimensional: Hacinamiento crítico",0.10285169399999998,0.106,0.10493999999999999,0.10389059999999999,0.10285169399999998]
["Gestión Misional","Fortaleza Misional y Sectorial","Gestión Misional y de Gobierno","Contribuir a la articulación de las Entidades del Sector, mediante la creación de estrategias, objetivos e indicadores, comunes, que garanticen el cumplimiento de los retos del Sector ante el Gobierno Nacional.","MVCT","Contribuir a la articulación de las Entidades del Sector, mediante el seguimiento y cumplimiento del Plan Estratégico Sectorial, que garanticen su cumplimiento ante  el Gobierno Nacional.","Cumplimiento del Plan Estratégico Sectorial","FMI-01","Metas cumplidas en el periodo / Metas a medir en el periodo * 100",{"$f":"N8","v":0.92},0.9,0.9,0.9,0.92]
["Gestión Misional","Necesidades insatisfechas","Gestión Misional y de Gobierno","Disminuir el déficit habitacional y de servicios de APSB en Colombia, mediante el desarrollo de políticas,  planes y programas, que permitan mejorar la calidad de Vida de los Colombianos","MVCT - Fonvivienda","Asegurar que cada vez más colombianos tengan derecho a condiciones de habitabilidad dignas, a través de la implementación de políticas, normativa, planes, programas y proyectos en materia de vivienda, agua potable, saneamiento básico, desarrollo urbano y territorial, con el fin de contribuir en el mejoramiento de la calidad de vida y la disminución de la pobreza de la población.","Viviendas de interés prioritario iniciadas en el programa de vivienda - VIPA","NIN-01","Sumatoria de viviendas",{"$f":"K9+L9+M9+N9","v":45629},18700,16005,{"$f":"45629-34705","v":10924},0]
[null,null,null,null,null,null,"Subsidios asignados para Viviendas de interés prioritario iniciadas en el programa de vivienda - VIPA","NIN-02","Sumatoria de subsidios asignados",76952,22651,24815,14743,14743]
[null,null,null,null,null,null,"Viviendas de interés prioritario y social iniciadas en el Programa de Cobertura Condicionada para Créditos de Vivienda Segunda Generación - \"Frech\"","NIN-03","Sumatoria de viviendas",130000,29500,33500,33500,33500]
[null,null,null,null,null,null,"Viviendas iniciadas de interés prioritario programa de vivienda gratis segunda fase","NIN-04","Sumatoria de viviendas",30000,3300,500,10000,16200]
[null,null,null,null,null,null,"Viviendas de interés social iniciadas en el Programa de promoción y acceso a vivienda de interés social - \"Mi Casa Ya\"","NIN-05","Sumatoria de viviendas",88000,10000,30000,25000,23000]
[null,null,null,null,null,null,"Subsidios asignados para Viviendas de interés social iniciadas en el Programa de promoción y acceso a vivienda de interés social - \"Mi Casa Ya\"","NIN-06","Sumatoria de subsidios asignados",59762,1891,6500,19557,31814]
[null,null,null,null,null,null,"Porcentaje de Subsisdios Familiares de Vivienda en Especie asignados a Población desplazada en el programa de vivienda gratuita","NIN-07","Población con subsidio familiar de vivienda en especie asignado / Total población desplazada * 100",{"$f":"N15","v":0.5},0.5,0.5,0.5,0.5]
[null,null,null,null,null,null,"Viviendas escrituradas del Programa de Vivienda Gratuita 1 y 2","NIN-08","Sumatoria de viviendas escrituradas",130000,31000,30000,35000,34000]
[null,null,null,null,null,null,"Viviendas terminadas del Programa de Vivienda Gratuita 1 y 2","NIN-09","Sumatoria de viviendas terminadas",19305,7305,0,3000,9000]
[null,null,null,null,"MVCT",null,"Porcentaje de hogares urbanos en condiciones de déficit de vivienda cuantitativo","NIN-10","(hogares urbanos en condiciones de déficit de vivienda cuantitativo/Total hogares urbanos)*100",{"$f":"N18","v":5.5E-2},6.8000000000000005E-2,6.4000000000000001E-2,0.06,5.5E-2]
[null,null,null,null,null,null,"Porcentaje de hogares urbanos en condiciones de déficit de vivienda cualitativo","NIN-11","(hogares urbanos en condiciones de déficit de vivienda cualitativo/Total hogares urbanos)*100",{"$f":"N19","v":0.10199999999999999},0.111,0.108,0.105,0.10199999999999999]
[null,null,null,null,null,null,"Títulos de predios fiscales y privados generados","NIN-12","Sumatoria de títulos generados",{"$f":"SUM(K20:N20)","v":26500},7000,7500,6000,6000]
[null,null,null,null,null,null,"Número de bienes inmuebles del extinto ICT-INURBE respecto de los cuales se adelantaron actividades de saneamiento","NIN-13","Sumatoria de bienes inmuebles del extinto ICT-INURBE con actividades de saneamiento",{"$f":"SUM(K21:N21)","v":7500},1500,2000,2000,2000]
[null,null,null,null,null,null,"Porcentaje de aguas residuales urbanas tratadas ","NIN-14","Aguas residuales tratadas / Total aguas residuales * 100",{"$f":"N22","v":0.41},0.37,0.38,0.39,0.41]
[null,null,null,null,null,null,"Personas con manejo adecuado de aguas residuales en la zona rural (Millones)","NIN-15","Sumatoria de personas con manejo adecuado de aguas residuales en la zona rural",{"$f":"N23","v":8.1884250000000005},7.4504250000000001,7.6144249999999998,7.9014249999999997,8.1884250000000005]
[null,null,null,null,null,null,"Personas con acceso a agua potable (Millones)","NIN-16","Cantidad de personas con acceso a agua potable total",{"$f":"N24","v":44.476999999999997},42.447000000000003,43.097000000000001,43.777000000000001,44.476999999999997]
[null,null,null,null,null,null,"Personas con acceso a agua potable en la zona rural (Millones)","NIN-17","Cantidad de personas con acceso a agua potable rural",{"$f":"N25","v":8.517296},7.9952959999999997,8.1112959999999994,8.3142960000000006,8.517296]
[null,null,null,null,null,null,"Nuevas personas beneficiadas con proyectos que mejoran provisión, calidad y/o continuidad de los servicios de acueducto y alcantarillado","NIN-18","Cantidad de personas beneficiadas",{"$f":"K26+L26+M26+N26","v":2300000},315000,514000,706000,765000]
[null,null,null,null,null,null,"Porcentaje de Municipios que tratan adecuadamente los Residuos Sólidos","NIN-19","Municipios que tratan adecuadamente los residuos sólidos / Total de Municipios *100",{"$f":"N27","v":0.83},0.79,0.8,0.82,0.83]
[null,null,null,null,null,null,"Personas con acceso a una solución de alcantarillado (Millones)","NIN-20","Cantidad de personas con acceso a una solución de alcantarillado",{"$f":"N28","v":42.369},40.048999999999999,40.628999999999998,41.499000000000002,42.369]
[null,null,null,null,"FNA","Incrementar la cantidad de afiliados por Cesantías y AVC ","Número de Afiliados por Cesantías y AVC","NIN-21","Sumatoria de afiliados a cesantías y AVC",{"$f":"N29","v":2557208},1903381,2046205,2292603,2557208]
[null,null,null,null,null,"Contar con el 20% de participación de mercado en el número de viviendas VIS financiadas","Participación del FNA en el número de desembolsos por créditos hipotecarios VIS en el mercado","NIN-22","N° de viviendas financiadas FNA/Total viviendas financiadas * 100 ",{"$f":"N30","v":0.18},0.2,0.14000000000000001,0.16,0.18]
["Gestión Misional","Normatividad y Regulación","Gestión Misional y de Gobierno","Formular las políticas, normativa, regulación y demás instrumentos legales y de gestión, mediante la presentación y aprobación de las mismas , para mejorar la prestación de los servicios de Agua Potable y Saneamiento Básico, consolidar un mejor sistema de Ciudades amables y productivas, mejorar la calidad de vida de las personas en el territorio nacional, contribuyendo con la disminución del déficit de vivienda urbana,  y con el desarrollo económico de Colombia.","MVCT","Formular la política pública de vivienda, agua potable, saneamiento básico y desarrollo urbano y territorial, así como los instrumentos normativos que la desarrollen, de acuerdo con las necesidades contempladas en el PND, los compromisos internacionales suscritos y la normatividad vigente, con el propósito de consolidar el sistema de ciudades, con patrones de uso eficiente y sostenible del suelo, para contribuir al mejoramiento de la calidad de vida de la población colombiana.","Estudios y Propuestas normativas y de política orientadas a optimizar el marco normativo en materia de Vivienda de desarrollo urbano y territorial sostenible.","NOR-01","Sumatoria de estudios y propuestas normativas desarrolladas",{"$f":"SUM(K31:N31)","v":19},5,7,4,3]
[null,null,null,null,null,null,null,"NOR-02",null,{"$f":"SUM(K32:N32)","v":25},9,8,4,4]
[null,null,null,null,null,null,"Estudios  y propuestas de nuevas disposiciones o modificaciones normativas o de politica del sector (APSB)","NOR-03","Sumatoria de estudios y propuestas de nuevas disposiciones o modificaciones normativas o de politica del sector ",26,1,13,8,4]
[]
[null,null,null,null,"CRA","Promover a través de la regulación, las condiciones de mercado adecuadas para la prestación de los servicios de Acueducto, Alcantarillado y Aseo.","Resoluciones definitivas de acueducto y alcantarillado publicadas","NOR-04","Sumatoria de resoluciones definitivas de acueducto y alcantarillado publicadas",9,0,2,6,1]
[null,null,null,null,null,null,"Resoluciones definitivas de aseo publicadas","NOR-05","Sumatoria de resoluciones definitivas de aseo publicadas",9,0,4,4,1]
[null,null,null,null,null,null,"Resoluciones definitivas desarrollos transversales publicadas","NOR-06","Sumatoria de resoluciones definitivas desarrollos transversales publicadas",6,0,2,2,2]
[null,null,null,null,null,null,"Resoluciones definitivas que  incentiven  el  uso  eficiente  y  de  ahorro  del  agua y reducción de impactos en fuentes hidricas","NOR-07","Sumatoria de resoluciones definitivas, uso eficiente y de ahorro del agua y reducción de impactos en fuentes hidricas, publicadas",4,0,2,2,0]
["Clientes","Cercanía con públicos de interés","Transparencia, participación y servicio al Ciudadano","Fortalecer los mecanismos de interacción del Sector hacia sus públicos de interés, mediante oportunidad y pertinencia en los procesos de atención, asistencia técnica, capacitación y entrega de información, para mejorar la percepción  de las partes interesadas y la transparencia de las Entidades del Sector","MVCT","Brindar información, orientación y asistencia, por medio de actividades de promoción y acompañamiento, para la implementación de políticas, normativa, planes, programas y proyectos, en materia de vivienda, APSB, desarrollo urbano y territorial a los públicos de interés, de manera oportuna y pertinente.","Municipios asistidos tecnicamente  en procesos de mejoramiento integral de barrios.","CPI-01","Sumatoria de Mpios apoyados",43,11,11,10,11]
[null,null,null,null,null,null,"Municipios Capacitados y/o apoyados técnicamente para la revisión de los planes de ordenamiento Territorial (POT)","CPI-02","Sumatoria de Municipios asistidos técnicamente para la revisión de los planes de ordenamiento territorial - POT",400,100,130,130,40]
[null,null,null,null,null,null,"Municipios capacitados en la elaboración del inventario de asentamientos en zonas de alto riesgo","CPI-03","Sumatoria de Municipios capacitados en la elaboración del inventario de asentamientos en zonas de alto riesgo",250,60,80,70,40]
[null,null,null,null,null,null,"Municipios Capacitados en la incorporación de la gestión del riesgo en la revisión de sus POT  ","CPI-04","Sumatoria de Municipios asistidos en la incorporación de la gestión del riesgo en los POT",400,100,130,130,40]
[null,null,null,null,null,null,"PDA con planes de aseguramiento en implementación","CPI-05","Sumatoria PDAs con planes de aseguramiento en implementación",{"$f":"N43","v":32},22,25,28,32]
[null,null,null,null,null,null,"Municipios con acciones de reducción de riesgo por desabastecimiento en temporada seca ejecutadas ","CPI-06","Sumatoria Municipios con acciones de reducción de riesgo por desabastecimiento en temporada seca ejecutadas ",{"$f":"N44","v":28},7,14,21,28]
[null,null,null,null,null,null,"Actuaciones Urbanas Integrales Evaluadas","CPI-07","Sumatoria de Actuaciones Urbanas Integrales Evaluadas",{"$f":"SUM(K45:N45)","v":45},10,12,{"$f":"4+4+3","v":11},{"$f":"4+4+4","v":12}]
[null,null,null,null,null,null,"Entidades Territoriales apoyadas financieramente para la ejecución de programas y proyectos de desarrollo urbano y territorial","CPI-08","Sumatoria de entidades apoyadas",{"$f":"K46+L46+M46+N46","v":3},1,1,0,1]
[null,null,null,null,null,null,"Entidades territoriales asistidas:\nPara el Desarrollo del programa de Conexiones Intradomiciliarias (PCI) de acuerdo con el Plan Nacional de Desarrollo.","CPI-09","Entidades Territoriales Asistidas / Entidades con solicitud o programacion de asistencia *100",0.8,0.8,0.8,0.8,0.8]
[null,null,null,null,null,"Fortalecer los estandares de transparencia de la entidad mediante la implementación del Plan Anticorrupción y de Atención al Ciudadano (PAAC), así como procesos contractuales transparentes, que permitan  mejorar la participación y percepción de la ciudadanía.","Porcentaje de procesos de contratación desiertos ","CPI-10","(numero de procesos desiertos / sobre numero de procesos del MVCT * 100)",0.04,5.7099999999999998E-2,5.1200000000000002E-2,0.04,0.04]
[null,null,null,null,null,null,"Atención a solicitudes de actuaciones disciplinarias \n","CPI-11","(No. De quejas e informes tramitados durante el mes / No. De quejas e informes recibidos durante el mes) *100",1,1,1,1,1]
[null,null,null,null,null,null,"Cumplimiento cronograma actividades de sensibilización  ","CPI-12","(No. De actividades de sensibilización realizadas en el mes / No. De actividades de sensibilización programadas en el mes)*100",1,1,1,1,1]
[null,null,null,null,null,null,"Acercamiento de la Ministra con la comunidad para hacer seguimiento a los proyectos de vivienda, agua potable y saneamiento básico ejecutados, en ejecución y por ejecutar en el territorio nacional","CPI-13","Cantidad de eventos",{"$f":"K51+L51+M51+N51","v":200},0,0,100,100]
[null,null,null,null,null,null,"Consolidación de conceptos a proyectos de ley en primer debate que afectan las políticas del Ministerio","CPI-14","(Número de conceptos consolidados de proyectos de ley en seguimiento en primer debate)/(Número total de proyectos de ley en seguimiento en primer debate)*100",{"$f":"N52","v":0.8},0.8,0.8,0.8,0.8]
[null,null,null,null,null,null,"Indice de Transparencia Nacional (ITN)","CPI-15","Resultado ITN",73,66,66,70,73]
[null,null,null,null,null,null,"Resultados FURAG","CPI-16","Resultado FURAG ",83,77,78,80,83]
[]
[null,null,null,null,"CRA","Implementar estrategia de gestión misional que posicione a la CRA como referente regulatorio.","Talleres regionales (Plan de asistencia técnica  y capacitación con enfoque territorial para facilitar la aplicación y conocimiento de los marcos regulatorios de AAA)","CPI-17","Sumatoria de talleres",{"$f":"K56+L56+M56+N56","v":15},0,0,5,10]
[null,null,null,null,null,null,"Instrumentos para divulgar los desarrollos regulatorios","CPI-18","Sumatoria de instrumentos",{"$f":"K57+L57+M57+N57","v":9},0,5,2,2]
[null,null,null,null,null,null,"Porcentaje de jornadas de participación ciudadana realizadas acorde con  la agenda regulatoria anual","CPI-19","Jornadas realizadas / Jornadas programadas * 100",{"$f":"N58","v":0.95},0,1,0.95,0.95]
[null,null,null,null,null,null,"Jornadas de rendición de cuentas en el marco de la estrategia de transparencia","CPI-20","Sumatoria de jornadas",{"$f":"K59+L59+M59+N59","v":3},0,1,1,1]
[null,null,null,null,null,null,"Porcentaje de actividades de la estrategia de comunicaciones ejecutadas utilizando los diferentes medios disponibles dirigidas a los diferentes stakeholders y orientada a divulgar la gestión institucional, los desarrollos regulatorios y avances sectoriales","CPI-21","Actividades realizadas / Actividades programadas * 100",{"$f":"N60","v":0.95},0,0,0.95,0.95]
[null,null,null,null,null,null,"Implementar el Análisis de Impacto Normativo (AIN) en la regulación que expida la CRA como instrumentos para incorporación de mejores prácticas internacionales en el marco de los compromisos de Colombia con la OCDE","CPI-22","Sumatoria de pilotos con aplicación de la metodología AIN",{"$f":"K61+L61+M61+N61","v":1},0,0,1,0]
[null,null,null,null,null,null,"Porcentaje de proyectos regulatorios de la CRA que utilizan AIN","CPI-23","Proyectos de la agenda regulatoria priorizados con aplicación del AIN/ Total proyectos * 100",{"$f":"N62","v":1},0,0,0,1]
[null,null,null,null,null,null,"Agenda Regulatoria estructurada en el marco del AIN","CPI-24","Sumatoria agendas",{"$f":"K63+L63+M63+N63","v":1},0,0,0,1]
[null,null,null,null,null,null,"Documentos y/o estudios para el análisis y desarrollo del sector de APSB","CPI-25","Sumatoria de documentos y estudios",{"$f":"K64+L64+M64+N64","v":4},0,2,1,1]
[null,null,null,null,null,null,"Documentos de seguimiento y/o análisis de medidas regulatorias ","CPI-26","Sumatoria de documentos",{"$f":"K65+L65+M65+N65","v":2},0,0,1,1]
[null,null,null,null,null,null,"Número de publicaciones con artículos estratégicos del sector y la regulación","CPI-27","Sumatoria de publicaciones",{"$f":"K66+L66+M66+N66","v":2},0,0,1,1]
[null,null,null,null,null,null,"Número de documentos de política (Conpes) y normas sectoriales (decretos) construidas con apoyo  de la UAE CRA","CPI-28","Sumatoria de documentos y normas sectoriales",{"$f":"K67+L67+M67+N67","v":5},0,3,1,1]
[null,null,null,null,"FNA","Lograr que más del 50% de las atenciones se realicen a través de canales diferentes a los PAC","Porcentaje de atenciones NO PAC","CPI-29","No. Servicios canales diferentes al PAC / No. Servicios totales * 100",0.39,0.12,0.2,0.28000000000000003,0.39]
[null,null,null,null,null,"Crecer anualmente en la calificación del Índice de Satisfacción de Cliente (CIV) de Colombia sobre la base de 2015","Índice de Satisfacción de la entidad ","CPI-30","Calificación Año (Indicador ACSI: Calidad percibida, expectativa cliente, valor percibido, lealtad y PQRs)",{"$f":"N69","v":0.74399999999999999},0.71699999999999997,0.72599999999999998,0.73499999999999999,0.74399999999999999]
[null,null,null,null,null,"Desarrollar una cultura organizacional de carácter humano, enfocada en el servicio y la gestión por resultados","Nivel de desarrollo de las competencias de Orientación a resultados y al cliente y excelencia en el servicio","CPI-31","Medición de las competencias de Orientación a resultados y al cliente y excelencia en el servicio",{"$f":"N70","v":0.79},0.75,0.75,0.77,0.79]
["Clientes","Portafolio y cobertura de servicios","Transparencia, participación y servicio al Ciudadano","Incrementar el portafolio de productos y la cobertura geográfica y poblacional de los servicios del Sector, mediante el diseño y ejecución de políticas y proyectos nuevos y el mantenimiento de los programas exitosos, que garanticen incrementar la cantidad de beneficiarios.","FNA","Incrementar la colocación de Crédito Constructor","Valor de crédito aprobado en MM de pesos","PCS-01","Valor de créditos Aprobados Acumulados",{"$f":"K71+L71+M71+N71","v":861026},204373,220928,310074,125651]
[null,null,null,null,null,null,"Valor de crédito desembolsado en MM de pesos","PCS-02","Valor de créditos Desembolsados Acumulados",{"$f":"K72+L72+M72+N72","v":775710},129824,185537,184889,275460]
[null,null,null,null,null,"Mantener las tasas de interés más competitivas en Crédito Hipotecario para VIS","Ranking de tasa de interés en crédito hipotecario VIS","PCS-03","Ranking de tasa de interés en crédito hipotecario VIS","Entidad con la tasa VIS promedio más baja del mercado","Entidad con la tasa VIS promedio más baja del mercado","Entidad con la tasa VIS promedio más baja del mercado","Entidad con la tasa VIS promedio más baja del mercado","Entidad con la tasa VIS promedio más baja del mercado"]
["Clientes","Post Conflicto","Transparencia, participación y servicio al Ciudadano","Implementar políticas, programas y proyectos, aprovechando el papel protagónico que tendrá el Sector en el Postconflicto, de tal forma que se logre incrementar coberturas y capturar nuevos recursos que incrementen la participación del Sector","SECTOR","Implementar políticas, programas y proyectos, aprovechando el papel protagónico que tendrá el Sector en el Postconflicto,  así como los recursos que se destinen desde el Gobierno Nacional, de tal forma que se contribuya al cumplimiento del reto contenido en el acuerdo de paz, de disminuir la pobreza rural en un 50% en la fase de transición de 15 años.","Índice de pobreza multidimensional Rural (Componente APSB)","PCO-01","(índice de probreza multidimensional componente APSB rural del periodo / índice de probreza multidimensional componente APSB rural línea base) - 1",-0.5,"La meta de reducción del 50% es a 15 años\nLas metas parciales (anuales) serán fijadas conforme a los lineamientos del Gobierno Nacional. "]
["Procesos Internos","Alianzas estratégicas y cooperación de otras Entidades","Eficiencia Admtiva y Gestión Financiera","Incrementar la cantidad de alianzas estratégicas y APPs en el Sector, mediante la interacción con Gremios, Entidades involucrados en el Sector, Entidades de cooperación internacional, Entidades territoriales y en general cualquier Ente externo al Sector, que permitan incrementar recursos, generar conocimientos técnicos adicionales, implementar programas y proyectos de vivienda y APSB.","CRA","Implementar estrategia de gestión misional que posicione a la CRA como referente regulatorio. ","Número de acuerdos y/o apoyos de cooperantes internacionales","AEC-01","Sumatoria de acuerdos",{"$f":"K75+L75+M75+N75","v":3},0,0,1,2]
[null,null,null,null,null,null,"Número de eventos internacionales para presentar y promocionar los desarrollos regulatorios de APSB  de Colombia","AEC-02","Sumatoria de eventos internacionales con participación CRA",{"$f":"K76+L76+M76+N76","v":3},0,1,1,1]
["Procesos Internos","Fortaleza financiera","Eficiencia Admtiva y Gestión Financiera","Contar con los recursos necesarios en el Sector, que garanticen la continuidad de los programas y planes de cada Entidad, mediante la realización de planes y proyectos atractivos, la gestión ante el Gobierno Nacional, el buen manejo de los recursos y la adecuada planeación de las inversiones","MVCT","Fortalecer la planeación presupuestal de la Entidad, bajo la metodología de presupuesto orientado a resultados, mediante la implementación de herramientas de programación, formulacion y seguimiento de los proyectos de inversión, de tal forma que se pueda contar con los recursos necesarios,  mejorar la eficiencia en su manejo y facilitar la toma de decisiones.","Seguimiento Ejecución presupuestal","FFI-01","Presupuesto obligado / Presupuesto apropiado",0.95,0.95,0.95,0.95,0.95]
[null,null,null,null,null,null,"CDP´s y RP´s Expedidos","FFI-02","((No de CDP'S Emitidos + No de RP'S Emitidos )/ (No de CDP'S Correctamente Solicitados +  No de RP'S Correctamente Solicitado)) * 100",1,1,1,1,1]
[null,null,null,null,null,null,"Informes de Estados Financieros","FFI-03","No de Informes Presentados",{"$f":"+K79+L79+M79+N79","v":16},4,4,4,4]
[null,null,null,null,null,null,"Porcentaje de PAC Ejecutado","FFI-04","((PAC Ejecutado)/(PAC solicitado)*100",{"$f":"N80","v":0.9},0.9,0.9,0.9,0.9]
[null,null,null,null,null,null,"Elaboración y publicación del anteproyecto anual de presupuesto ","FFI-05","Presentacion anual del anteproyecto de presupuesto",4,1,1,1,1]
[]
[null,null,null,null,null,null,"Avance de ejecución  plan anual de Adquisiciones formulado y actualizado de gastos Generales, de acuerdo a los linemientos de Colombia Compra eficiente.","FFI-06","Plan anual ejecutado / Pla anual de Adquisiciones total ",1,1,1,1,1]
[null,null,null,null,null,null,"Informe de seguimiento a la ejecución de avance del Diagnostico del estado de la infraestructura","FFI-07","Sumatoria de informes realizados",2,0,0,1,1]
[null,null,null,null,null,null,"Avance de ejecución  de las actividades de adecuacion y mejoramiento","FFI-08","Actividades de adecuación y mejoramiento ejecutadas/ actividades de adecuacón y mejoramiento programadas ",1,1,1,1,1]
[null,null,null,null,null,null,"Identificar necesidades de apoyo administrativo","FFI-09","Sumatoria de informes realizados",24,0,0,12,12]
[null,null,null,null,null,null,"Prestación de servicios requeridos para el desarrollo administrativo","FFI-10","Servicios Atendidos / Servicis Requeridos ",1,1,1,1,1]
[null,null,null,null,null,null,"Proyectos formulados\n","FFI-11","Sumatoria de proyectos de inversión formulados",11,0,6,5,0]
[null,null,null,null,"CRA","Fortalecer la gestión institucional para enfrentar los retos del sector","Seguimiento Ejecución presupuestal","FFI-12","Presupuesto obligado / Presupuesto apropiado",{"$f":"N89","v":0.93},0.9,0.9,0.92,0.93]
[null,null,null,null,"FNA","Mantener la calificación de deuda corporativa de largo plazo en AAA","Calificación de deuda corporativa de largo plazo en AAA","FFI-13","Indicador de deuda corporativa largo plazo de Fitch Ratings AAA","AAA\nF1\nBRC1","AAA\nF1\nBRC1","AAA\nF1\nBRC1","AAA\nF1\nBRC1","AAA\nF1\nBRC1"]
["Procesos Internos","Habilidades Comunicacionales","Eficiencia Admtiva y Gestión Financiera","Incrementar las capacidades de comunicación, interna de las Entidades del Sector, entre las diferentes Entidades y externa hacia los públicos de interés, mediante  la mejora en los canales de comunicación y la construcción de informes sectoriales de amplia divulgación, de tal forma que faciliten la gestión de las Entidades del Sector.","MVCT","Dar a conocer a la ciudadanía, a las partes interesadas y a los servidores públicos, mediante canales y procedimientos efectivos, las políticas, programas, proyectos, planes y actuaciones del Ministerio, para lograr una divulgación de información suficiente y atención oportuna y pertinente.","Productos de comunicación aprobados para los canales de comunicación interna.","HCO-01","Sumatoria de productos comunicacionales internos aprobados por coordinador del grupo ",{"$f":"K91+L91+M91+N91","v":1600},400,400,400,400]
[null,null,null,null,null,null,"Productos de comunicación aprobados para los canales de comunicación externa.","HCO-02","Sumatoria de productos comunicacionales externos aprobados por coordinador del grupo ",{"$f":"K92+L92+M92+N92","v":7625},2123,1834,1834,1834]
[null,null,null,null,null,null,"Porcentaje de solicitudes atendidas Por la Oficina Asesora Jurídica","HCO-03","Numero de solictudes atendidas/Solicitudes recibidas*100",1,1,1,1,1]
["Procesos Internos","Tecnología y Procesos","Eficiencia Admtiva,  Gestión Financiera y GEL","Mejorar los procesos y la tecnología que usa el Sector, mediante proyectos de modernización tecnológica y administrativa que permitan prestar servicios de manera eficiente, eficaz y efectiva.","MVCT","Articular los modelos de gestión dentro del sistema Integrado de la entidad mediante  estandarización de los procesos para cumplir los requisitos establecidos en la normatividad vigente ","Modelos de gestión integrados","TEP-01","# modelos integrados",{"$f":"K94+L94+M94+N94","v":3},0,0,1,2]
[]
[]
[null,null,null,null,null,"Mejorar los procesos y la tecnología que usa la Entidad, mediante proyectos de modernización y mantenimiento tecnológico y administrativo, de tal forma que se reduzcan los trámites y el consumo de papel, y se atienda oportunamente a funcionarios y públicos de interés.","Número de trámites y/o otros procedimientos administrativos (servicios) del MVCT Racionalizados.","TEP-02","Sumatoria de trámites y procedimientos racionalizados",{"$f":"K97+L97+M97+N97","v":4},1,1,1,1]
[null,null,null,null,null,null,"Porcentaje de avance componente GEL - TIC para Servicios","TEP-03","(sumatoria cumplimiento componente GEL / % exigido Componente GEL)",1,0.9,1,1,1]
[null,null,null,null,null,null,"Porcentaje de avance componente GEL - TIC para Gobierno Abierto","TEP-04","(sumatoria cumplimiento componente GEL / % exigido Componente GEL)",1,0.9,1,1,1]
[]
[]
[null,null,null,null,null,null,"Porcentaje de avance componente GEL - TIC para la Gestión","TEP-05","(sumatoria cumplimiento componente GEL / % exigido componente  GEL)",1,0.25,0.5,0.8,1]
[]
[]
[]
[null,null,null,null,null,null,"Porcentaje de avance componente GEL - Seguridad y privacidad en la Información","TEP-06","(sumatoria cumplimiento componente GEL / % exigido componente GEL)",1,0.4,0.6,0.8,1]
[null,null,null,null,null,null,"Porcentaje de avance del Programa de Gestión Documental elaborado e implementado.","TEP-07","(Actividades ejecutadas en  el programa de gestión documental/ Actividades programadas) *100",0.9,0.5,0.6,0.75,0.9]
[null,null,null,null,null,null,"Porcentaje de intervención del Archivo del archivo central ubicado en la Sede la Fragua del MVCT","TEP-08","Metros lineales de archivo intervenidos / metros lineales propuestos para intervención",0.6,0.3,0.4,0.5,0.6]
[null,null,null,null,null,null,"Facilitar el acceso a un documento o grupo de documentos con el fin de garantizar el derecho que tienen los usuarios para acceder a la información contenida en los archivos publicos propendiendo por la disminción de tiempos de atención","TEP-09","Dias promedio de respuesta a las solicitudes de consulta y prestamo en el archivo central",{"$f":"N109","v":3},0,0,4,3]
[null,null,null,null,null,"Asesorar, acompañar, evaluar y verificar la conformidad del Sistema de Control Interno del Ministerio de Vivienda de Ciudad y Territorio y FONVIVIENDA,  de forma Independiente, Objetiva y Oportuna","Cumplimiento de las actividades del Programa anual de auditoría","TEP-10","Actividades cumplidas / actividades programadas en el plan *100",1,1,1,1,1]
[null,null,null,null,"CRA","Fortalecer la gestión institucional para enfrentar los retos del sector.","Porcentaje de procesos misionales y de apoyo ajustados","TEP-11","Procesos Misionales ajustados / Total procesos Misionales * 100",{"$f":"N111","v":1},0,0,0,1]
[null,null,null,null,null,null,"Cumplimiento en implementación GEL","TEP-12","(Número de metas GEL cumplidas / Número total de metas por cumplir) * 100",{"$f":"N112","v":1},0,1,1,1]
[null,null,null,null,"FNA","Diseñar e Implementar el Plan Estratégico de Tecnología","Porcentaje de cumplimiento del diseño e implementación del Plan Estratégico de Tecnología","TEP-13","Hitos Plan Estratégico de Tecnología completadas * ponderación de cada hito / Total de hitos del Plan Estratégico de Tecnología",0.85,0.05,0.15,0.6,0.85]
["Aprendizaje y Crecimiento","Gestión del Talento humano: Capacitado, suficiente, motivado","Gestión del Talento Humano","Mejorar el desempeño de los servidores públicos, mediante estrategias de gestión de talento humano que permitan contar con personal competente, suficiente y motivado, para el logro de los objetivos del Sector.","MVCT","Mejorar el desempeño de los servidores públicos de la Entidad, mediante estrategias administrativas y operativas de selección, vinculación, capacitación, seguridad y salud en el trabajo, para garantizar la competencia y el bienestar del personal.","Porcentaje de avance del Plan Institucional de Capacitación, formulado, implementado y publicado en la Intranet.","GTH-01","(Actividades ejecutadas en el plan institucional de capacitación/ Actividades programadas) *100",0.9,0.9,0.9,0.9,0.9]
[null,null,null,null,null,null,"Capacitaciones en materia contractual. ","GTH-02","capacitaciones realizadas/ capacitaciones programadas",1,1,1,1,1]
[null,null,null,null,null,null,"Porcentaje de avance del Plan Anual de Empleos Vacantes actualizado y publicado en la página web institucional.","GTH-03","(Actividades ejecutadas en el plan anual de empleos vacantes / Actividades programadas) * 100",1,1,1,1,1]
[null,null,null,null,null,null,"Porcentaje de avance del Plan anual de Trabajo de Seguridad y Salud en el Trabajo","GTH-04","(Actividades ejecutadas en el plan/ Actividades programadas) *100",0.9,0.9,0.9,0.9,0.9]
[null,null,null,null,null,null,"Porcentaje de avance del programa de bienestar social e incentivos, formulado, implementado y publicado en la intranet.","GTH-05","(Actividades ejecutadas en el programa de bienestar social e incentivos/ Actividades programadas) *100",0.9,0.9,0.9,0.9,0.9]
[null,null,null,null,null,null,"Porcentaje de avance del Plan Estratégico de recursos humanos formulado, implementado y publicado en la página web institucional.","GTH-06","(Actividades ejecutadas en el plan estratégico de recursos humanos/ Actividades programadas)  * 100",0.9,0.9,0.9,0.9,0.9]
[null,null,null,null,"CRA","Fortalecer la gestión institucional para enfrentar los retos del sector.","Propuesta normativa para ajustar la estructura de la UAE CRA","GTH-07","Sumatoria de propuestas",{"$f":"K120+L120+M120+N120","v":1},0,0,1,0]
[null,null,null,null,null,null,"Porcentaje de actividades requeridas para fortalecer la gestión institucional ejecutadas","GTH-08","(Actividades ejecutadas / Actividades programadas) *100",{"$f":"N121","v":1},0,1,1,1]
[null,null,null,null,null,null,"Porcentaje de actividades requeridas para fortalecer las competencias y el talento humano dela UAE CRA","GTH-09","(Actividades ejecutadas / Actividades programadas) *100",{"$f":"N122","v":1},0,1,1,1]
[null,null,null,null,"FNA","Mejorar las competencias de los funcionarios del FNA, mediante la Implementación de programas de capacitación (PIC)","Porcentaje de avance del Plan Institucional de Capacitación, formulado, implementado y publicado en la Intranet.","GTH-10","(Actividades ejecutadas en el plan institucional de capacitación/ Actividades programadas) *100",1,1,1,1,1]
[null,null,null,null,null,"Desarrollar una cultura organizacional de carácter humano, enfocada en el servicio y la gestión por resultados","Nivel de desarrollo de las competencias de Orientación a resultados y al cliente y excelencia en el servicio","GTH-11","Medición de las competencias de Orientación a resultados y al cliente y excelencia en el servicio",{"$f":"N124","v":0.79},0.75,0.75,0.77,0.79]
["Aprendizaje y Crecimiento","Nuevas tecnologías + Innovación + ID","Gestión del Talento Humano, Eficiencia Admtiva","Incrementar las capacidades de Innovación de las Entidades del Sector, mediante la implementación de programas de innovación, la incorporación de nueva tecnología y la elaboración de investigaciones estructuradas, que permita la creación de productos y procesos innovadores para satisfacer a los públicos de interés","FNA","Desarrollar e implementar un modelo de gestión de conocimiento en la organización","Porcentaje de cumplimiento del Plan de Acción\nFase 1: Modelo de Gestión de Conocimiento Diseñado\nFase 2: Piloto 1 de Gestión de Conocimiento desarrollado\nFase 3: Número de consultas del Mapa de Gestión de Conocimiento. Número de indicadores de utilización de conocimiento generados\nFase 4: Número de iniciativas de generación o aprovechamiento efectivo de conocimiento generadas a partir de la utilización del modelo ","NID-01","Total fases cumplidas / Total fases proyecto",{"$f":"N125","v":1},0.25,0.5,0.75,1]